fUSD/lending_fUSD_20250511
["ID","MTS","AMOUNT","RATE_DAILY","PERIOD"]
[360767489,1746999005531,-500.0,0.00041096,30]
[360767491,1746999005557,-500.0,0.00041096,30]
[360767493,1746999005584,-500.0,0.00041096,30]
[360767495,1746999005611,-500.0,0.00041096,30]
[360767498,1746999005638,-500.0,0.00041096,30]
[360767499,1746999005664,-500.0,0.00041096,30]
[360767502,1746999005693,-500.0,0.00041096,30]
[360767504,1746999005719,-500.0,0.00041096,30]
[360767506,1746999005745,-500.0,0.00041096,30]
[360767508,1746999005770,-500.0,0.00041096,30]
[360767510,1746999005795,-500.0,0.00041096,30]
[360767512,1746999005820,-500.0,0.00041096,30]
[360767514,1746999005844,-500.0,0.00041096,30]
[360767516,1746999005870,-500.0,0.00041096,30]
[360767518,1746999005895,-500.0,0.00041096,30]
[360767520,1746999005922,-500.0,0.00041096,30]
[360767521,1746999005948,-500.0,0.00041096,30]
[360767524,1746999005974,-500.0,0.00041096,30]
[360767526,1746999006000,-500.0,0.00041096,30]
[360767528,1746999006025,-500.0,0.00041096,30]
[360767530,1746999006051,-500.0,0.00041096,30]
[360767532,1746999006077,-500.0,0.00041096,30]
[360767534,1746999006103,-500.0,0.00041096,30]
[360767535,1746999006129,-500.0,0.00041096,30]
[360767538,1746999006158,-500.0,0.00041096,30]
[360767540,1746999006186,-500.0,0.00041096,30]
[360767542,1746999006214,-500.0,0.00041096,30]
[360767544,1746999006240,-500.0,0.00041096,30]
[360767546,1746999006265,-500.0,0.00041096,30]
[360767548,1746999006292,-505.0,0.00041096,30]
[360767550,1746999006317,-193.38022106,0.00041096,31]
[360767552,1746999006343,-441.69,0.00041119,120]
[360767554,1746999006383,-150.0,0.00041211,120]
[360767556,1746999006411,-450.18,0.00041245,30]
[360767558,1746999006440,-452.44,0.00041245,30]
[360767570,1746999006715,-162.53,0.00041245,30]
[360767573,1746999006746,-352.72,0.00041245,30]
[360767575,1746999006777,-452.44,0.00041245,30]
[360767577,1746999006807,-352.72,0.00041245,30]
[360767579,1746999006835,-162.53,0.00041245,30]
[360767581,1746999006862,-452.44,0.00041245,30]
[360767583,1746999006890,-352.72,0.00041245,30]
[360767585,1746999006917,-162.53,0.00041245,30]
[360767587,1746999006943,-162.29,0.00041245,30]
[360767589,1746999006969,-352.72,0.00041245,30]
[360767592,1746999006995,-452.44,0.00041245,30]
[360767594,1746999007021,-352.72,0.00041245,30]
[360767596,1746999007048,-452.44,0.00041245,30]
[360767598,1746999007073,-457.95,0.00041245,30]
[360767600,1746999007099,-352.72,0.00041245,30]
[360767602,1746999007127,-352.72,0.00041245,30]
[360767604,1746999007154,-1371.79242,0.00041288,30]
[360767606,1746999007181,-160.0,0.000413,38]
[360767608,1746999007208,-160.0,0.000413,38]
[360767610,1746999007236,-572.0,0.00041437,30]
[360767612,1746999007264,-572.0,0.00041437,30]
[360767614,1746999007295,-572.0,0.00041437,30]
[360767617,1746999007322,-572.0,0.00041437,30]
[360767619,1746999007350,-572.0,0.00041437,30]
[360767621,1746999007378,-572.0,0.00041437,30]
[360767623,1746999007405,-572.0,0.00041437,30]
[360767625,1746999007433,-572.0,0.00041437,30]
[360767627,1746999007460,-572.0,0.00041437,30]
[360767629,1746999007490,-572.0,0.00041437,30]
[360767632,1746999007518,-572.0,0.00041437,30]
[360767634,1746999007546,-572.0,0.00041437,30]
[360767636,1746999007573,-572.0,0.00041437,30]
[360767638,1746999007604,-572.0,0.00041437,30]
[360767640,1746999007631,-312.0,0.00041451,30]
[360767641,1746999007659,-312.0,0.00041451,30]
[360767642,1746999007687,-312.0,0.00041451,30]
[360767643,1746999007713,-312.0,0.00041451,30]
[360767644,1746999007741,-312.0,0.00041451,30]
[360767646,1746999007768,-312.0,0.00041451,30]
[360767648,1746999007795,-312.0,0.00041451,30]
[360767650,1746999007821,-312.0,0.00041451,30]
[360767652,1746999007848,-312.0,0.00041451,30]
[360767654,1746999007876,-312.0,0.00041451,30]
[360767657,1746999007907,-312.0,0.00041451,30]
[360767659,1746999007933,-312.0,0.00041451,30]
[360767661,1746999007960,-312.0,0.00041451,30]
[360767663,1746999007987,-312.0,0.00041451,30]
[360767665,1746999008015,-572.0,0.00041457,30]
[360767667,1746999008043,-572.0,0.00041457,30]
[360767669,1746999008070,-572.0,0.00041457,30]
[360767671,1746999008099,-572.0,0.00041457,30]
[360767673,1746999008130,-572.0,0.00041457,30]
[360767675,1746999008158,-572.0,0.00041457,30]
[360767677,1746999008187,-572.0,0.00041457,30]
[360767679,1746999008217,-572.0,0.00041457,30]
[360767681,1746999008246,-572.0,0.00041457,30]
[360767684,1746999008288,-572.0,0.00041457,30]
[360767686,1746999008320,-572.0,0.00041457,30]
[360767688,1746999008351,-572.0,0.00041457,30]
[360767691,1746999008381,-572.0,0.00041457,30]
[360767693,1746999008410,-572.0,0.00041457,30]
[360767695,1746999008438,-312.0,0.0004147,30]
[360767697,1746999008465,-312.0,0.0004147,30]
[360767699,1746999008494,-312.0,0.0004147,30]
[360767701,1746999008521,-312.0,0.0004147,30]
[360767703,1746999008549,-312.0,0.0004147,30]
[360767705,1746999008577,-312.0,0.0004147,30]
[360767707,1746999008605,-312.0,0.0004147,30]
[360767709,1746999008633,-312.0,0.0004147,30]
[360767711,1746999008661,-312.0,0.0004147,30]
[360767714,1746999008689,-312.0,0.0004147,30]
[360767716,1746999008717,-312.0,0.0004147,30]
[360767718,1746999008746,-312.0,0.0004147,30]
[360767720,1746999008774,-312.0,0.0004147,30]
[360767722,1746999008802,-312.0,0.0004147,30]
[360767724,1746999008830,-572.0,0.00041477,30]
[360767726,1746999008859,-572.0,0.00041477,30]
[360767728,1746999008888,-572.0,0.00041477,30]
[360767730,1746999008916,-572.0,0.00041477,30]
[360767731,1746999008944,-572.0,0.00041477,30]
[360767734,1746999008972,-572.0,0.00041477,30]
[360767736,1746999009000,-572.0,0.00041477,30]
[360767738,1746999009028,-572.0,0.00041477,30]
[360767740,1746999009057,-572.0,0.00041477,30]
[360767742,1746999009085,-572.0,0.00041477,30]
[360767744,1746999009112,-572.0,0.00041477,30]
[360767746,1746999009144,-572.0,0.00041477,30]
[360767747,1746999009173,-572.0,0.00041477,30]
[360767750,1746999009202,-572.0,0.00041477,30]
[360767751,1746999009230,-1371.79242,0.00041488,30]
[360767754,1746999009258,-312.0,0.00041491,30]
[360767756,1746999009285,-312.0,0.00041491,30]
[360767758,1746999009313,-312.0,0.00041491,30]
[360767760,1746999009340,-312.0,0.00041491,30]
[360767771,1746999009582,-312.0,0.00041491,30]
[360767772,1746999009644,-312.0,0.00041491,30]
[360767773,1746999009670,-312.0,0.00041491,30]
[360767774,1746999009698,-312.0,0.00041491,30]
[360767775,1746999009726,-312.0,0.00041491,30]
[360767776,1746999009752,-312.0,0.00041491,30]
[360767777,1746999009779,-312.0,0.00041491,30]
[360767778,1746999009808,-312.0,0.00041491,30]
[360767779,1746999009834,-312.0,0.00041491,30]
[360767780,1746999009862,-312.0,0.00041491,30]
[360767781,1746999009890,-572.0,0.00041497,30]
[360767782,1746999009918,-572.0,0.00041497,30]
[360767783,1746999009945,-572.0,0.00041497,30]
[360767784,1746999009972,-572.0,0.00041497,30]
[360767785,1746999009999,-572.0,0.00041497,30]
[360767786,1746999010026,-572.0,0.00041497,30]
[360767787,1746999010054,-572.0,0.00041497,30]
[360767788,1746999010082,-572.0,0.00041497,30]
[360767789,1746999010110,-572.0,0.00041497,30]
[360767790,1746999010141,-572.0,0.00041497,30]
[360767791,1746999010168,-572.0,0.00041497,30]
[360767792,1746999010195,-572.0,0.00041497,30]
[360767793,1746999010223,-572.0,0.00041497,30]
[360767794,1746999010251,-572.0,0.00041497,30]
[360767795,1746999010277,-283.127237,0.00041499,120]
[360767796,1746999010304,-2000.0,0.00041499,120]
[360767797,1746999010332,-317.059839,0.00041499,120]
[360767798,1746999010357,-256.343089,0.00041499,120]
[360767799,1746999010383,-312.0,0.00041504,30]
[360767800,1746999010409,-312.0,0.00041504,30]
[360767801,1746999010435,-312.0,0.00041504,30]
[360767802,1746999010460,-312.0,0.00041504,30]
[360767803,1746999010485,-312.0,0.00041504,30]
[360767804,1746999010512,-312.0,0.00041504,30]
[360767805,1746999010538,-312.0,0.00041504,30]
[360767806,1746999010565,-312.0,0.00041504,30]
[360767807,1746999010592,-312.0,0.00041504,30]
[360767808,1746999010619,-312.0,0.00041504,30]
[360767809,1746999010645,-312.0,0.00041504,30]
[360767810,1746999010672,-312.0,0.00041504,30]
[360767811,1746999010698,-312.0,0.00041504,30]
[360767812,1746999010724,-312.0,0.00041504,30]
[360767813,1746999010752,-572.0,0.00041509,30]
[360767814,1746999010779,-572.0,0.00041509,30]
[360767815,1746999010804,-572.0,0.00041509,30]
[360767816,1746999010830,-572.0,0.00041509,30]
[360767817,1746999010856,-572.0,0.00041509,30]
[360767818,1746999010882,-572.0,0.00041509,30]
[360767819,1746999010909,-572.0,0.00041509,30]
[360767820,1746999010936,-572.0,0.00041509,30]
[360767821,1746999010963,-572.0,0.00041509,30]
[360767822,1746999010991,-572.0,0.00041509,30]
[360767823,1746999011019,-572.0,0.00041509,30]
[360767824,1746999011047,-572.0,0.00041509,30]
[360767825,1746999011074,-572.0,0.00041509,30]
[360767826,1746999011102,-572.0,0.00041509,30]
[360767827,1746999011128,-312.0,0.00041523,30]
[360767828,1746999011158,-312.0,0.00041523,30]
[360767829,1746999011184,-312.0,0.00041523,30]
[360767830,1746999011211,-312.0,0.00041523,30]
[360767831,1746999011237,-312.0,0.00041523,30]
[360767832,1746999011263,-312.0,0.00041523,30]
[360767833,1746999011288,-312.0,0.00041523,30]
[360767834,1746999011314,-312.0,0.00041523,30]
[360767835,1746999011340,-312.0,0.00041523,30]
[360767836,1746999011366,-312.0,0.00041523,30]
[360767837,1746999011391,-312.0,0.00041523,30]
[360767838,1746999011417,-312.0,0.00041523,30]
[360767839,1746999011443,-312.0,0.00041523,30]
[360767840,1746999011469,-312.0,0.00041523,30]
[360767841,1746999011496,-572.0,0.0004153,30]
[360767842,1746999011522,-572.0,0.0004153,30]
[360767843,1746999011550,-572.0,0.0004153,30]
[360767844,1746999011575,-572.0,0.0004153,30]
[360767845,1746999011601,-572.0,0.0004153,30]
[360767846,1746999011627,-572.0,0.0004153,30]
[360767847,1746999011653,-572.0,0.0004153,30]
[360767848,1746999011678,-572.0,0.0004153,30]
[360767849,1746999011704,-572.0,0.0004153,30]
[360767850,1746999011731,-572.0,0.0004153,30]
[360767851,1746999011757,-572.0,0.0004153,30]
[360767852,1746999011783,-572.0,0.0004153,30]
[360767853,1746999011809,-572.0,0.0004153,30]
[360767854,1746999011839,-312.0,0.00041544,30]
[360767855,1746999011864,-312.0,0.00041544,30]
[360767856,1746999011889,-312.0,0.00041544,30]
[360767857,1746999011915,-312.0,0.00041544,30]
[360767858,1746999011941,-312.0,0.00041544,30]
[360767859,1746999011967,-312.0,0.00041544,30]
[360767860,1746999011993,-312.0,0.00041544,30]
[360767861,1746999012019,-312.0,0.00041544,30]
[360767862,1746999012045,-312.0,0.00041544,30]
[360767863,1746999012073,-312.0,0.00041544,30]
[360767864,1746999012100,-312.0,0.00041544,30]
[360767865,1746999012127,-312.0,0.00041544,30]
[360767866,1746999012409,-312.0,0.00041544,30]
[360767867,1746999012437,-150.0,0.00041587,120]
[360767868,1746999012464,-3000.0,0.00041643,60]
[360767869,1746999012491,-1371.79242,0.00041688,30]
[360767870,1746999012517,-350.0,0.00041742,30]
[360767871,1746999012545,-150.0,0.00041794,120]
[360767872,1746999012572,-443.43532,0.000418,120]
[360767873,1746999012600,-1371.79242,0.00041888,30]
[360767874,1746999012625,-682.0,0.0004197,120]
[360767875,1746999012651,-1577.0,0.0004197,120]
[360767876,1746999012677,-2571.0,0.0004197,120]
[360767877,1746999012702,-682.0,0.0004197,120]
[360767878,1746999012728,-1577.0,0.0004197,120]
[360767879,1746999012754,-2571.0,0.0004197,120]
[360767880,1746999012780,-389.0,0.0004197,120]
[360767881,1746999012806,-389.0,0.0004197,120]
[360767882,1746999012831,-682.0,0.0004198,120]
[360767883,1746999012858,-1577.0,0.0004198,120]
[360767884,1746999012884,-2571.0,0.0004198,120]
[360767885,1746999012910,-682.0,0.0004198,120]
[360767886,1746999012936,-1577.0,0.0004198,120]
[360767887,1746999012962,-2571.0,0.0004198,120]
[360767888,1746999012988,-682.0,0.0004198,120]
[360767889,1746999013013,-1577.0,0.0004198,120]
[360767890,1746999013039,-2571.0,0.0004198,120]
[360767891,1746999013065,-1581.89,0.0004198,120]
[360767892,1746999013089,-690.15,0.0004198,120]
[360767893,1746999013114,-2577.43,0.0004198,120]
[360767894,1746999013143,-389.0,0.0004198,120]
[360767895,1746999013177,-389.0,0.0004198,120]
[360767896,1746999013208,-389.0,0.0004198,120]
[360767897,1746999013239,-398.45,0.0004198,120]
[360767898,1746999013265,-682.0,0.0004199,120]
[360767899,1746999013291,-1577.0,0.0004199,120]
[360767900,1746999013319,-251.12,0.0004199,120]
[360767901,1746999013345,-2571.0,0.0004199,120]
[360767902,1746999013371,-682.0,0.0004199,120]
[360767903,1746999013397,-1577.0,0.0004199,120]
[360767904,1746999013424,-2571.0,0.0004199,120]
[360767905,1746999013450,-682.0,0.0004199,120]
[360767906,1746999013475,-1577.0,0.0004199,120]
[360767907,1746999013502,-2571.0,0.0004199,120]
[360767908,1746999013528,-1577.0,0.0004199,120]
[360767909,1746999013554,-682.0,0.0004199,120]
[360767910,1746999013580,-2571.0,0.0004199,120]
[360767911,1746999013606,-389.0,0.0004199,120]
[360767912,1746999013632,-389.0,0.0004199,120]
[360767913,1746999013658,-389.0,0.0004199,120]
[360767914,1746999013685,-389.0,0.0004199,120]
[360767915,1746999013714,-50000.0,0.00042,42]
[360767916,1746999013740,-369.18196499,0.00042,120]
[360767917,1746999013766,-472.43859992,0.00042,120]
[360767918,1746999013792,-325.86405093,0.00042,30]
[360767919,1746999013821,-284.64651419,0.00042,120]
[360767920,1746999013848,-2700.0,0.00042,43]
[360767921,1746999013875,-2000.0,0.00042,120]
[360767922,1746999013902,-500.0,0.00042,120]
[360767923,1746999013928,-1149.76570798,0.00042,30]
[360767924,1746999013956,-150.0,0.00042064,120]
[360767925,1746999013984,-352.72,0.00042067,30]
[360767926,1746999014009,-1371.79242,0.00042088,30]
[360767927,1746999014035,-323.47490952,0.00042121,120]
[360767928,1746999014062,-3000.0,0.00042191,60]
[360767929,1746999014088,-900.0,0.00042191,60]
[360767930,1746999014115,-1371.79242,0.00042288,30]
[360767931,1746999014146,-160.0,0.000423,43]
[360767932,1746999014174,-160.0,0.000423,43]
[360767933,1746999014201,-150.0,0.00042373,120]
[360767934,1746999014228,-150.0,0.00042379,120]
[360767935,1746999014256,-150.0,0.00042449,120]
[360767936,1746999014283,-468.34,0.00042465,120]
[360767937,1746999014310,-1371.79242,0.00042488,30]
[360767938,1746999014335,-369.32226152,0.000425,120]
[360767939,1746999014363,-150.0,0.00042609,120]
[360767940,1746999014389,-1371.79242,0.00042688,30]
[360767941,1746999014416,-575.36470418,0.00042701,30]
[360767942,1746999014441,-3000.0,0.00042739,60]
[360767943,1746999014467,-900.0,0.00042739,60]
[360767944,1746999014493,-4236.49003921,0.00042789,30]
[360767945,1746999014519,-1750.0995331,0.000428,120]
[360767946,1746999014546,-443.43532,0.000428,120]
[360767947,1746999014573,-150.0,0.00042845,120]
[360767948,1746999014599,-9914.37276773,0.0004288,120]
[360767949,1746999014625,-1371.79242,0.00042888,30]
[360767950,1746999014651,-3000.0,0.0004289,41]
[360767951,1746999014677,-199.52448893,0.000429,120]
[360767952,1746999014704,-150.0,0.00042973,120]
[360767953,1746999014730,-2553.0,0.00042978,48]
[360767954,1746999014756,-2000.0,0.00042999,120]
[360767955,1746999014785,-50000.0,0.00043,43]
[360767956,1746999014811,-900.0,0.00043,44]
[360767957,1746999014836,-244.56223651,0.00043,120]
[360767958,1746999014863,-3000.00111123,0.00043,30]
[360767959,1746999014891,-272.7447485,0.00043,120]
[360767960,1746999015188,-32610.0,0.00043,120]
[360767961,1746999015217,-4436.65368968,0.00043,120]
[360767962,1746999015243,-307.024798,0.00043,120]
[360767963,1746999015269,-266.98106638,0.00043,120]
[360767964,1746999015294,-741.47,0.00043,120]
[360767965,1746999015321,-1520.37,0.00043,120]
[360767966,1746999015347,-3383.96,0.00043,120]
[360767967,1746999015373,-5502.6,0.00043,120]
[360767968,1746999015399,-1371.79242,0.00043088,30]
[360767969,1746999015425,-2000.0,0.00043149,35]
[360767970,1746999015451,-402152.8165438,0.00043202,30]
[360767971,1746999015478,-402152.8165438,0.00043202,30]
[360767972,1746999015503,-402152.8165438,0.00043202,30]
[360767973,1746999016606,-1149.76570798,0.00043203,30]
[360767974,1746999016633,-4236.49003921,0.00043211,30]
[360767975,1746999016667,-3000.0,0.00043287,60]
[360767976,1746999016702,-900.0,0.00043287,60]
[360767977,1746999016738,-1371.79242,0.00043288,30]
[360767978,1746999017056,-160.0,0.000433,47]
[360767979,1746999017088,-160.0,0.000433,47]
[360767980,1746999017118,-150.0,0.00043374,120]
[360767981,1746999017148,-500.0,0.00043401,120]
[360767982,1746999017175,-1371.79242,0.00043488,30]
[360767983,1746999017204,-68267.12,0.000435,30]
[360767984,1746999017234,-150.0,0.00043531,120]
[360767985,1746999017262,-150.0,0.00043592,120]
[360767986,1746999017289,-4248.46,0.000436,120]
[360767987,1746999017316,-2130.12,0.000436,120]
[360767988,1746999017344,-267.3,0.000436,120]
[360767989,1746999017373,-150.0,0.00043607,120]
[360767990,1746999017400,-162.5,0.00043657,30]
[360767991,1746999017427,-1371.79242,0.00043688,30]
[360767992,1746999017453,-1642.77426605,0.000437,120]
[360767993,1746999017480,-483.6689915,0.000438,30]
[360767994,1746999017507,-443.43532,0.000438,120]
[360767995,1746999017534,-696.28067239,0.000438,120]
[360767996,1746999017560,-150.0,0.00043804,30]
[360767997,1746999017586,-599.0,0.0004381,120]
[360767998,1746999017612,-3000.0,0.00043835,120]
[360767999,1746999017638,-900.0,0.00043835,120]
[360768000,1746999017663,-400.0,0.00043835,60]
[360768001,1746999017689,-400.0,0.00043835,60]
[360768002,1746999017715,-278.43814952,0.00043835,60]
[360768003,1746999017741,-468.34,0.00043835,120]
[360768004,1746999017767,-239.47227449,0.00043836,120]
[360768005,1746999020633,500.0,0.00038356,120]
[360768006,1746999020670,500.0,0.00038356,120]
[360768007,1746999020727,500.0,0.00038356,120]
[360768008,1746999020821,500.0,0.00038356,120]
[360768009,1746999020865,500.0,0.00038356,120]
[360768010,1746999021112,500.0,0.00038356,120]
[360768011,1746999021167,500.0,0.00038356,120]
[360768012,1746999021207,500.0,0.00038356,120]
[360768013,1746999021240,500.0,0.00038356,120]
[360768014,1746999021400,500.0,0.00038356,120]
[360768015,1746999021438,500.0,0.00038356,120]
[360768016,1746999021509,500.0,0.00038356,120]
[360768017,1746999021551,500.0,0.00038356,120]
[360768018,1746999021720,500.0,0.00038356,120]
[360768019,1746999021808,500.0,0.00038356,120]
[360768020,1746999021985,534.94187648,0.00038356,120]
[360768021,1746999023124,312.0,0.00041432,30]
[360768022,1746999023532,312.0,0.00041432,30]
[360768023,1746999023618,312.0,0.00041432,30]
[360768024,1746999023739,312.0,0.00041432,30]
[360768025,1746999023878,312.0,0.00041432,30]
[360768026,1746999023986,312.0,0.00041432,30]
[360768027,1746999024096,312.0,0.00041432,30]
[360768028,1746999024390,312.0,0.00041432,30]
[360768029,1746999024568,312.0,0.00041432,30]
[360768030,1746999024739,312.0,0.00041432,30]
[360768031,1746999024862,312.0,0.00041432,30]
[360768032,1746999025372,312.0,0.00041432,30]
[360768033,1746999025490,312.0,0.00041432,30]
[360768034,1746999025624,312.0,0.00041432,30]
[360768035,1746999027480,200.0,0.00043836,30]
[360768036,1746999028224,207.4,0.00043836,30]
[360768037,1746999029137,215.0738,0.00043836,30]
[360768038,1746999029486,223.0315306,0.00043836,30]
[360768039,1746999030132,151.0,0.00043836,30]
[360768040,1746999030196,231.28369723,0.00043836,30]
[360768041,1746999030784,156.587,0.00043836,30]
[360768042,1746999030856,239.84119403,0.00043836,30]
[360768043,1746999031192,248.71531821,0.00043836,30]
[360768044,1746999031418,162.380719,0.00043836,30]
[360768045,1746999031482,257.91778498,0.00043836,30]
[360768046,1746999031687,168.3888056,0.00043836,30]
[360768047,1746999031906,267.46074303,0.00043836,30]
[360768053,1746999032113,174.61919141,0.00043836,30]
[360768054,1746999032242,277.35679052,0.00043836,30]
[360768067,1746999032531,181.08010149,0.00043836,30]
[360768069,1746999032635,287.61899177,0.00043836,30]
[360768070,1746999033113,187.78006525,0.00043836,30]
[360768071,1746999033520,298.26089446,0.00043836,30]
[360768072,1746999033622,194.72792766,0.00043836,30]
[360768073,1746999033807,309.29654756,0.00043836,30]
[360768074,1746999034096,320.74051982,0.00043836,30]
[360768075,1746999034183,1378163.00348115,0.0004326,44]
[360768083,1746999041427,-250.0,0.00014307,2]
[360768084,1746999041436,-324.42573208,0.0001431,2]
[360768085,1746999041447,-764.22018208,0.0001431,2]
[360768086,1746999041581,-668.62408584,0.0001431,2]
[360768087,1746999041590,-158.53,0.00014836,2]
[360768088,1746999041600,-339.78708773,0.00014888,2]
[360768089,1746999041610,-339.78708767,0.00014889,2]
[360768090,1746999041619,-339.78708767,0.00014891,2]
[360768091,1746999041628,-151.0,0.00014891,2]
[360768092,1746999041638,-339.78708767,0.00014892,2]
[360768093,1746999041647,-339.78708767,0.00014893,2]
[360768094,1746999041657,-339.78708767,0.00014895,2]
[360768095,1746999041667,-150.99,0.00014896,2]
[360768096,1746999041676,-609.84888343,0.00014896,2]
[360768097,1746999041688,-598.20233049,0.00014896,2]
[360768098,1746999041699,-2002.65164984,0.00014896,2]
[360768099,1746999041710,-2783.80509327,0.00014896,2]
[360768100,1746999041750,-15825.56204297,0.00014896,2]
[360768101,1746999041760,-339.78708767,0.00014896,2]
[360768102,1746999041769,-339.78708767,0.00014897,2]
[360768103,1746999041779,-339.78708767,0.00014899,2]
[360768104,1746999041788,-1184.3814,0.00014899,2]
[360768105,1746999041798,-30.03077572,0.00014899,2]
[360768106,1746999041809,-159.82722428,0.00014899,2]
[360768107,1746999041818,-2064.1874785,0.000149,2]
[360768108,1746999041828,-999.38681161,0.000149,2]
[360768109,1746999041839,-388.00883751,0.000149,2]
[360768110,1746999041851,-676.79182939,0.000149,2]
[360768111,1746999041860,-2751.05,0.000149,2]
[360768112,1746999041870,-466.38802018,0.000149,2]
[360768113,1746999041880,-292.47870539,0.000149,2]
[360768114,1746999041890,-421.37578233,0.000149,2]
[360768115,1746999041899,-339.78708767,0.000149,2]
[360768116,1746999041909,-268.07431678,0.000149,2]
[360768117,1746999041918,-475.15378022,0.000149,2]
[360768118,1746999041928,-537.12922494,0.000149,2]
[360768119,1746999041938,-190.78567093,0.000149,2]
[360768120,1746999041947,-1197.89729991,0.000149,2]
[360768121,1746999041960,-2967.66811576,0.000149,2]
[360768122,1746999041971,-2553.33000917,0.000149,2]
[360768123,1746999041982,-1952.72595287,0.000149,2]
[360768124,1746999041994,-4474.8697187,0.000149,2]
[360768132,1746999044172,-3931.35617861,0.000149,2]
[360768133,1746999044183,-161.1930852,0.00014924,2]
[360768134,1746999044193,-161.30369579,0.00014973,2]
[360768135,1746999044202,-211.95351012,0.00014973,2]
[360768136,1746999044211,-740.88059788,0.00014978,2]
[360768137,1746999044222,-1000.0,0.00014987,2]
[360768138,1746999044232,-1008.2708602,0.00014988,2]
[360768139,1746999044242,-3452.0645652,0.00014988,2]
[360768140,1746999044251,-645.96282925,0.00014988,2]
[360768141,1746999044261,-586.9215258,0.00014988,2]
[360768142,1746999044271,-54632.4050502,0.00014988,2]
[360768143,1746999044280,-200.0,0.0001499,2]
[360768144,1746999044289,-200.0,0.0001499,2]
[360768145,1746999044298,-798.0,0.00014998,2]
[360768146,1746999044307,-627.0,0.00014998,2]
[360768147,1746999044316,-1455.0,0.00014998,2]
[360768148,1746999044325,-552.0,0.00014998,2]
[360768149,1746999044334,-583.0,0.00014998,2]
[360768150,1746999044344,-918.0,0.00014998,2]
[360768151,1746999044354,-1258.629,0.00014998,2]
[360768152,1746999044363,-1145.0,0.00014998,2]
[360768153,1746999044372,-5938.0,0.00014998,2]
[360768154,1746999044382,-6816.0,0.00014998,2]
[360768155,1746999044391,-1304.0,0.00014998,2]
[360768156,1746999044400,-321.08744799,0.00014999,2]
[360768157,1746999044410,-300.0,0.00014999,2]
[360768158,1746999044420,-300.0,0.00014999,2]
[360768159,1746999044429,-399.79178544,0.00014999,2]
[360768160,1746999044438,-7530.9365241,0.00014999,2]
[360768161,1746999044449,-1626.31948689,0.00014999,2]
[360768162,1746999045195,-879.0,0.00014998,2]
[360768163,1746999045205,-20416.37587037,0.00014999,2]
[360768164,1746999045228,-244981.22058489,0.00014999,2]
[360768165,1746999045267,-314.05648873,0.00014999,2]
[360768166,1746999045834,-15.85914439,0.00014999,2]
[360768167,1746999045850,-1476.20957977,0.00014999,2]
[360768186,1746999046707,-268.61,0.00014999,2]
[360768188,1746999046718,-13422.6385245,0.00014999,2]
[360768191,1746999046729,-14351.0,0.00014999,2]
[360768193,1746999046744,-192351.11929825,0.00014999,2]
[360768196,1746999046759,-858.6849167,0.00014999,2]
[360768220,1746999047730,-428.89054298,0.00014998,2]